[Event "Titled Tuesday Blitz September 13 Early 2022"]
[White "Sargsyan, Anna M."]
[Black "Ceres, Dragos"]
[WhiteFideId "13308130"]
[BlackFideId "13905864"]
[WhiteElo "2271"]
[BlackElo "2150"]
[Result "1-0"]
[Round "07"]
[TimeControl "180+1"]
[Date "2022.09.13"]
[WhiteClock "0:00:01"]
[BlackClock "0:00:01"]

1. d4 {[%clk 0:03:00]}  d5 {[%clk 0:02:54]} 2. c4 {[%clk 0:02:58]}  e6 {[%clk 0:02:53]} 3. Nf3 {[%clk 0:02:58]}  a6 {[%clk 0:02:50]} 4. cxd5 {[%clk 0:02:54]}  exd5 {[%clk 0:02:50]} 5. Qb3 {[%clk 0:02:55]}  h6 {[%clk 0:02:43]} 6. e4 {[%clk 0:02:47]}  dxe4 {[%clk 0:02:08]} 7. Ne5 {[%clk 0:02:47]}  Be6 {[%clk 0:02:07]} 8. Bc4 {[%clk 0:02:48]}  Bxc4 {[%clk 0:02:08]} 9. Qxc4 {[%clk 0:02:48]}  Qe7 {[%clk 0:02:02]} 10. Nc3 {[%clk 0:02:42]}  Nf6 {[%clk 0:02:00]} 11. O-O {[%clk 0:02:42]}  Nbd7 {[%clk 0:01:50]} 12. Qxc7 {[%clk 0:02:13]}  Nxe5 {[%clk 0:01:50]} 13. Qxe5 {[%clk 0:02:14]}  Qxe5 {[%clk 0:01:11]} 14. dxe5 {[%clk 0:02:15]}  Nd7 {[%clk 0:01:12]} 15. Nxe4 {[%clk 0:02:06]}  Nxe5 {[%clk 0:01:12]} 16. Re1 {[%clk 0:01:51]}  O-O-O {[%clk 0:01:12]} 17. Bf4 {[%clk 0:01:04]}  Nd3 {[%clk 0:01:11]} 18. Red1 {[%clk 0:01:02]}  Be7 {[%clk 0:00:57]} 19. Be3 {[%clk 0:00:44]}  Rd7 {[%clk 0:00:53]} 20. Rd2 {[%clk 0:00:42]}  Rhd8 {[%clk 0:00:52]} 21. h3 {[%clk 0:00:37]}  Ne5 {[%clk 0:00:44]} 22. Rc2+ {[%clk 0:00:36]}  Nc6 {[%clk 0:00:44]} 23. Kh2 {[%clk 0:00:33]}  Rd1 {[%clk 0:00:44]} 24. Rxd1 {[%clk 0:00:32]}  Rxd1 {[%clk 0:00:45]} 25. a3 {[%clk 0:00:31]}  f5 {[%clk 0:00:45]} 26. Nc5 {[%clk 0:00:29]}  Bd6+ {[%clk 0:00:42]} 27. g3 {[%clk 0:00:28]}  g5 {[%clk 0:00:36]} 28. Nxa6 {[%clk 0:00:11]}  f4 {[%clk 0:00:36]} 29. Bc5 {[%clk 0:00:12]}  fxg3+ {[%clk 0:00:31]} 30. fxg3 {[%clk 0:00:11]}  bxa6 {[%clk 0:00:31]} 31. Bf2 {[%clk 0:00:10]}  Kb7 {[%clk 0:00:30]} 32. Kg2 {[%clk 0:00:11]}  Ne5 {[%clk 0:00:25]} 33. Re2 {[%clk 0:00:11]}  Kc6 {[%clk 0:00:24]} 34. h4 {[%clk 0:00:10]}  g4 {[%clk 0:00:24]} 35. b4 {[%clk 0:00:09]}  Kd5 {[%clk 0:00:23]} 36. Be3 {[%clk 0:00:10]}  h5 {[%clk 0:00:22]} 37. Bg5 {[%clk 0:00:10]}  Nf3 {[%clk 0:00:22]} 38. Kf2 {[%clk 0:00:09]}  Bc7 {[%clk 0:00:20]} 39. Rc2 {[%clk 0:00:04]}  Bb6+ {[%clk 0:00:20]} 40. Ke2 {[%clk 0:00:05]}  Re1+ {[%clk 0:00:18]} 41. Kd3 {[%clk 0:00:05]}  Ne5+ {[%clk 0:00:18]} 42. Kc3 {[%clk 0:00:06]}  Bd4+ {[%clk 0:00:19]} 43. Kb3 {[%clk 0:00:06]}  Rb1+ {[%clk 0:00:18]} 44. Ka4 {[%clk 0:00:07]}  Rg1 {[%clk 0:00:18]} 45. Bf4 {[%clk 0:00:06]}  Nd3 {[%clk 0:00:19]} 46. Bb8 {[%clk 0:00:06]}  Nb2+ {[%clk 0:00:18]} 47. Ka5 {[%clk 0:00:07]}  Nc4+ {[%clk 0:00:18]} 48. Kxa6 {[%clk 0:00:07]}  Nxa3 {[%clk 0:00:19]} 49. Rd2 {[%clk 0:00:07]}  Nc4 {[%clk 0:00:19]} 50. Rxd4+ {[%clk 0:00:07]}  Kxd4 {[%clk 0:00:19]} 51. Ba7+ {[%clk 0:00:08]}  Kc3 {[%clk 0:00:18]} 52. Bxg1 {[%clk 0:00:06]}  Kxb4 {[%clk 0:00:18]} 53. Kb7 {[%clk 0:00:06]}  Kc3 {[%clk 0:00:18]} 54. Kc6 {[%clk 0:00:06]}  Kd3 {[%clk 0:00:18]} 55. Kd5 {[%clk 0:00:07]}  Ne3+ {[%clk 0:00:18]} 56. Ke5 {[%clk 0:00:06]}  Nf1 {[%clk 0:00:14]} 57. Kf4 {[%clk 0:00:06]}  Ke2 {[%clk 0:00:14]} 58. Bc5 {[%clk 0:00:05]}  Nd2 {[%clk 0:00:13]} 59. Ba7 {[%clk 0:00:05]}  Kf1 {[%clk 0:00:12]} 60. Kg5 {[%clk 0:00:04]}  Kg2 {[%clk 0:00:11]} 61. Bb8 {[%clk 0:00:03]}  Ne4+ {[%clk 0:00:07]} 62. Kxh5 {[%clk 0:00:03]}  Nxg3+ {[%clk 0:00:08]} 63. Kxg4 {[%clk 0:00:04]}  Ne4 {[%clk 0:00:09]} 64. Be5 {[%clk 0:00:03]}  Nf2+ {[%clk 0:00:05]} 65. Kg5 {[%clk 0:00:03]}  Ne4+ {[%clk 0:00:05]} 66. Kf4 {[%clk 0:00:02]}  Nc5 {[%clk 0:00:03]} 67. h5 {[%clk 0:00:01]}  Kh3 {[%clk 0:00:04]} 68. h6 {[%clk 0:00:01]}  Ne6+ {[%clk 0:00:04]} 69. Kf5 {[%clk 0:00:01]}  Nf8 {[%clk 0:00:05]} 70. Bg7 {[%clk 0:00:01]}  Nd7 {[%clk 0:00:01]} 71. h7 {[%clk 0:00:01]} 1-0


[Site "https://www.chess.com"]

[Event "Titled Tuesday Blitz September 13 Early 2022"]
[White "Shimanov, Aleksandr"]
[Black "Grandelius, Nils"]
[WhiteFideId "4198603"]
[BlackFideId "1710400"]
[WhiteElo "2605"]
[BlackElo "2617"]
[Result "0-1"]
[Round "07"]
[TimeControl "180+1"]
[Date "2022.09.13"]
[WhiteClock "0:00:05"]
[BlackClock "0:00:42"]

1. e4 {[%clk 0:03:00]}  c5 {[%clk 0:02:58]} 2. Nf3 {[%clk 0:03:00]}  Nc6 {[%clk 0:02:59]} 3. Nc3 {[%clk 0:02:58]}  d6 {[%clk 0:02:55]} 4. d4 {[%clk 0:02:51]}  cxd4 {[%clk 0:02:55]} 5. Nxd4 {[%clk 0:02:52]}  e5 {[%clk 0:02:52]} 6. Nb3 {[%clk 0:02:37]}  Be6 {[%clk 0:02:47]} 7. Be3 {[%clk 0:02:30]}  Nf6 {[%clk 0:02:47]} 8. Be2 {[%clk 0:02:27]}  Be7 {[%clk 0:02:45]} 9. g4 {[%clk 0:02:14]}  d5 {[%clk 0:02:36]} 10. exd5 {[%clk 0:02:13]}  Nxd5 {[%clk 0:02:37]} 11. Nxd5 {[%clk 0:02:13]}  Qxd5 {[%clk 0:02:34]} 12. Bf3 {[%clk 0:02:07]}  Qc4 {[%clk 0:02:26]} 13. c3 {[%clk 0:02:00]}  O-O {[%clk 0:02:14]} 14. Qe2 {[%clk 0:01:53]}  Qa4 {[%clk 0:02:12]} 15. Nc5 {[%clk 0:01:40]}  Bxc5 {[%clk 0:02:12]} 16. Bxc5 {[%clk 0:01:41]}  Rfd8 {[%clk 0:02:05]} 17. Qe4 {[%clk 0:01:15]}  Qb5 {[%clk 0:01:57]} 18. b4 {[%clk 0:01:06]}  Bd5 {[%clk 0:01:43]} 19. Qe2 {[%clk 0:01:04]}  Bc4 {[%clk 0:01:41]} 20. Qb2 {[%clk 0:00:46]}  Bd3 {[%clk 0:01:11]} 21. Qb3 {[%clk 0:00:46]}  Na5 {[%clk 0:01:05]} 22. bxa5 {[%clk 0:00:30]}  Qxc5 {[%clk 0:01:05]} 23. Qb4 {[%clk 0:00:31]}  Qc7 {[%clk 0:01:03]} 24. Rd1 {[%clk 0:00:29]}  e4 {[%clk 0:00:52]} 25. Be2 {[%clk 0:00:29]}  Bxe2 {[%clk 0:00:52]} 26. Kxe2 {[%clk 0:00:29]}  Qf4 {[%clk 0:00:52]} 27. Rxd8+ {[%clk 0:00:09]}  Rxd8 {[%clk 0:00:53]} 28. Rb1 {[%clk 0:00:05]}  Rd2+ {[%clk 0:00:41]} 29. Ke1 {[%clk 0:00:05]}  Qxf2# {[%clk 0:00:42]} 0-1


[Site "https://www.chess.com"]

[Event "Titled Tuesday Blitz September 13 Early 2022"]
[White "Van Foreest, Jorden"]
[Black "Bykhovsky, Anatoly"]
[WhiteFideId "1039784"]
[BlackFideId "2806991"]
[WhiteElo "2649"]
[BlackElo "2540"]
[Result "1-0"]
[Round "07"]
[TimeControl "180+1"]
[Date "2022.09.13"]
[WhiteClock "0:02:11"]
[BlackClock "0:00:43"]

1. Nf3 {[%clk 0:03:00]}  Nf6 {[%clk 0:02:59]} 2. c4 {[%clk 0:03:01]}  c5 {[%clk 0:02:58]} 3. Nc3 {[%clk 0:02:59]}  Nc6 {[%clk 0:02:57]} 4. d4 {[%clk 0:02:57]}  cxd4 {[%clk 0:02:58]} 5. Nxd4 {[%clk 0:02:58]}  e6 {[%clk 0:02:58]} 6. g3 {[%clk 0:02:50]}  d5 {[%clk 0:02:56]} 7. Bg2 {[%clk 0:02:47]}  Bb4 {[%clk 0:02:29]} 8. O-O {[%clk 0:02:45]}  O-O {[%clk 0:02:29]} 9. cxd5 {[%clk 0:02:43]}  exd5 {[%clk 0:02:27]} 10. Bg5 {[%clk 0:02:43]}  h6 {[%clk 0:01:55]} 11. Nxd5 {[%clk 0:02:35]}  hxg5 {[%clk 0:01:50]} 12. Nxc6 {[%clk 0:02:34]}  bxc6 {[%clk 0:01:45]} 13. Nxb4 {[%clk 0:02:34]}  Qb6 {[%clk 0:01:45]} 14. Nxc6 {[%clk 0:02:32]}  Bb7 {[%clk 0:01:44]} 15. Qd4 {[%clk 0:02:26]}  Qb5 {[%clk 0:01:30]} 16. a4 {[%clk 0:02:19]}  Qxe2 {[%clk 0:00:47]} 17. Rfe1 {[%clk 0:02:12]}  Qa6 {[%clk 0:00:47]} 18. Nb4 {[%clk 0:02:11]}  Qa5 {[%clk 0:00:43]} 19. Bxb7 {[%clk 0:02:11]} 1-0


[Site "https://www.chess.com"]

[Event "Titled Tuesday Blitz September 13 Early 2022"]
[White "Vogel, Roven"]
[Black "Filgueira, Hernan"]
[WhiteFideId "12908088"]
[BlackFideId "101770"]
[WhiteElo "2501"]
[BlackElo "2363"]
[Result "1-0"]
[Round "07"]
[TimeControl "180+1"]
[Date "2022.09.13"]
[WhiteClock "0:00:12"]
[BlackClock "0:00:05"]

1. d4 {[%clk 0:03:00]}  d6 {[%clk 0:02:56]} 2. Nf3 {[%clk 0:02:59]}  Bg4 {[%clk 0:02:53]} 3. e4 {[%clk 0:02:57]}  Nf6 {[%clk 0:02:52]} 4. Nbd2 {[%clk 0:02:56]}  Nbd7 {[%clk 0:02:46]} 5. h3 {[%clk 0:02:50]}  Bxf3 {[%clk 0:02:39]} 6. Qxf3 {[%clk 0:02:49]}  g6 {[%clk 0:02:39]} 7. Bd3 {[%clk 0:02:43]}  c6 {[%clk 0:02:30]} 8. Qe2 {[%clk 0:02:42]}  e5 {[%clk 0:02:23]} 9. Nc4 {[%clk 0:02:36]}  Qc7 {[%clk 0:02:22]} 10. dxe5 {[%clk 0:02:31]}  dxe5 {[%clk 0:02:21]} 11. O-O {[%clk 0:02:28]}  Bg7 {[%clk 0:02:16]} 12. Be3 {[%clk 0:02:24]}  O-O {[%clk 0:02:14]} 13. a4 {[%clk 0:02:23]}  a5 {[%clk 0:02:10]} 14. Qd2 {[%clk 0:02:17]}  Rfe8 {[%clk 0:02:07]} 15. Qc3 {[%clk 0:02:15]}  Bf8 {[%clk 0:02:04]} 16. Nd2 {[%clk 0:01:59]}  Bb4 {[%clk 0:01:58]} 17. Qc4 {[%clk 0:01:58]}  Nb6 {[%clk 0:01:44]} 18. Qb3 {[%clk 0:01:57]}  Nbd7 {[%clk 0:01:44]} 19. c3 {[%clk 0:01:41]}  Bc5 {[%clk 0:01:43]} 20. Bg5 {[%clk 0:01:41]}  Kg7 {[%clk 0:01:33]} 21. Bc4 {[%clk 0:01:38]}  Re7 {[%clk 0:01:31]} 22. Rfe1 {[%clk 0:01:35]}  h6 {[%clk 0:01:30]} 23. Bh4 {[%clk 0:01:34]}  Ba7 {[%clk 0:01:16]} 24. Qc2 {[%clk 0:01:33]}  g5 {[%clk 0:01:10]} 25. Bg3 {[%clk 0:01:32]}  Nf8 {[%clk 0:01:09]} 26. Nf1 {[%clk 0:01:28]}  Ng6 {[%clk 0:01:09]} 27. Ne3 {[%clk 0:01:25]}  Bxe3 {[%clk 0:01:09]} 28. fxe3 {[%clk 0:01:21]}  Rd7 {[%clk 0:01:04]} 29. Rf1 {[%clk 0:01:20]}  Nh5 {[%clk 0:00:57]} 30. Bh2 {[%clk 0:01:19]}  Qb6 {[%clk 0:00:50]} 31. Qf2 {[%clk 0:01:08]}  c5 {[%clk 0:00:22]} 32. Qf5 {[%clk 0:00:48]}  Re7 {[%clk 0:00:19]} 33. b3 {[%clk 0:00:35]}  Rf8 {[%clk 0:00:17]} 34. Rad1 {[%clk 0:00:33]}  Nf6 {[%clk 0:00:12]} 35. Bg3 {[%clk 0:00:28]}  Nh5 {[%clk 0:00:10]} 36. Be1 {[%clk 0:00:22]}  Nf6 {[%clk 0:00:09]} 37. Rd2 {[%clk 0:00:20]}  Ng8 {[%clk 0:00:08]} 38. Rd5 {[%clk 0:00:19]}  f6 {[%clk 0:00:07]} 39. Bg3 {[%clk 0:00:17]}  Rc7 {[%clk 0:00:07]} 40. Rfd1 {[%clk 0:00:17]}  N8e7 {[%clk 0:00:07]} 41. Rd7 {[%clk 0:00:17]}  Rxd7 {[%clk 0:00:06]} 42. Rxd7 {[%clk 0:00:18]}  Re8 {[%clk 0:00:06]} 43. Qe6 {[%clk 0:00:16]}  Qxe6 {[%clk 0:00:05]} 44. Bxe6 {[%clk 0:00:17]}  Kf8 {[%clk 0:00:05]} 45. Rxb7 {[%clk 0:00:15]}  Nc6 {[%clk 0:00:05]} 46. Bd7 {[%clk 0:00:14]}  Nd8 {[%clk 0:00:05]} 47. Bxe8 {[%clk 0:00:14]}  Nxb7 {[%clk 0:00:04]} 48. Bxg6 {[%clk 0:00:13]}  Nd6 {[%clk 0:00:05]} 49. c4 {[%clk 0:00:12]}  Ke7 {[%clk 0:00:05]} 50. Be1 {[%clk 0:00:12]}  Kf8 {[%clk 0:00:05]} 51. Bxa5 {[%clk 0:00:12]} 1-0


[Site "https://www.chess.com"]

[Event "Titled Tuesday Blitz September 13 Early 2022"]
[White "Xiong, Jeffery"]
[Black "Paravyan, David"]
[WhiteFideId "2047640"]
[BlackFideId "4194985"]
[WhiteElo "2714"]
[BlackElo "2555"]
[Result "1-0"]
[Round "07"]
[TimeControl "180+1"]
[Date "2022.09.13"]
[WhiteClock "0:01:14"]
[BlackClock "0:00:01"]

1. d4 {[%clk 0:03:00]}  Nf6 {[%clk 0:03:00]} 2. Nf3 {[%clk 0:03:01]}  g6 {[%clk 0:03:00]} 3. Nbd2 {[%clk 0:03:02]}  d5 {[%clk 0:03:00]} 4. b3 {[%clk 0:03:02]}  Bf5 {[%clk 0:02:59]} 5. Bb2 {[%clk 0:03:02]}  e6 {[%clk 0:03:00]} 6. e3 {[%clk 0:03:02]}  Nbd7 {[%clk 0:02:59]} 7. Be2 {[%clk 0:03:03]}  Bd6 {[%clk 0:02:57]} 8. Ne5 {[%clk 0:03:02]}  h5 {[%clk 0:02:57]} 9. c4 {[%clk 0:03:00]}  c6 {[%clk 0:02:57]} 10. O-O {[%clk 0:02:59]}  Ng4 {[%clk 0:02:44]} 11. Nef3 {[%clk 0:02:55]}  Ndf6 {[%clk 0:02:35]} 12. h3 {[%clk 0:02:35]}  Qe7 {[%clk 0:02:04]} 13. Ne5 {[%clk 0:02:35]}  Ne4 {[%clk 0:01:16]} 14. Nxe4 {[%clk 0:02:29]}  Bxe4 {[%clk 0:01:02]} 15. hxg4 {[%clk 0:02:22]}  hxg4 {[%clk 0:01:00]} 16. Bxg4 {[%clk 0:02:23]}  Qh4 {[%clk 0:00:38]} 17. f3 {[%clk 0:02:23]}  f5 {[%clk 0:00:39]} 18. Bh3 {[%clk 0:02:04]}  Qg5 {[%clk 0:00:11]} 19. Kh2 {[%clk 0:02:04]}  f4 {[%clk 0:00:05]} 20. Qe1 {[%clk 0:01:38]}  Bf5 {[%clk 0:00:05]} 21. exf4 {[%clk 0:01:39]}  Qxf4+ {[%clk 0:00:05]} 22. Qg3 {[%clk 0:01:40]}  Qd2 {[%clk 0:00:03]} 23. Rf2 {[%clk 0:01:40]}  Qe3 {[%clk 0:00:02]} 24. f4 {[%clk 0:01:26]}  Qe4 {[%clk 0:00:01]} 25. Bc3 {[%clk 0:01:14]} 1-0


[Site "https://www.chess.com"]

[Event "Titled Tuesday Blitz September 13 Early 2022"]
[White "Bykhovsky, Anatoly"]
[Black "Gabdrakhmanov, Azat"]
[WhiteFideId "2806991"]
[BlackFideId "34189197"]
[WhiteElo "2540"]
[BlackElo "2233"]
[Result "0-1"]
[Round "08"]
[TimeControl "180+1"]
[Date "2022.09.13"]
[WhiteClock "0:00:50"]
[BlackClock "0:00:05"]

1. Nf3 {[%clk 0:03:00]}  c5 {[%clk 0:03:00]} 2. g3 {[%clk 0:02:58]}  b6 {[%clk 0:03:00]} 3. Bg2 {[%clk 0:02:56]}  Bb7 {[%clk 0:03:01]} 4. O-O {[%clk 0:02:57]}  Nf6 {[%clk 0:03:01]} 5. c4 {[%clk 0:02:57]}  e6 {[%clk 0:03:01]} 6. Nc3 {[%clk 0:02:56]}  Be7 {[%clk 0:03:01]} 7. d4 {[%clk 0:02:52]}  cxd4 {[%clk 0:03:01]} 8. Qxd4 {[%clk 0:02:53]}  O-O {[%clk 0:02:59]} 9. b3 {[%clk 0:02:51]}  Na6 {[%clk 0:02:58]} 10. Rd1 {[%clk 0:02:49]}  Qc8 {[%clk 0:02:57]} 11. Bb2 {[%clk 0:02:26]}  d6 {[%clk 0:02:56]} 12. Rac1 {[%clk 0:02:21]}  Rd8 {[%clk 0:02:54]} 13. h3 {[%clk 0:02:11]}  Nc5 {[%clk 0:02:53]} 14. g4 {[%clk 0:02:10]}  h6 {[%clk 0:02:39]} 15. b4 {[%clk 0:02:02]}  e5 {[%clk 0:02:30]} 16. Qe3 {[%clk 0:02:00]}  Ne6 {[%clk 0:02:28]} 17. Nd5 {[%clk 0:01:59]}  Bf8 {[%clk 0:01:23]} 18. Nxf6+ {[%clk 0:01:53]}  gxf6 {[%clk 0:01:24]} 19. Nh4 {[%clk 0:01:52]}  Bxg2 {[%clk 0:01:23]} 20. Kxg2 {[%clk 0:01:53]}  Qb7+ {[%clk 0:01:18]} 21. Qf3 {[%clk 0:01:51]}  Nf4+ {[%clk 0:01:13]} 22. Kg3 {[%clk 0:01:49]}  Qxf3+ {[%clk 0:01:07]} 23. Kxf3 {[%clk 0:01:50]}  Nxh3 {[%clk 0:01:07]} 24. Nf5 {[%clk 0:01:51]}  Rac8 {[%clk 0:01:04]} 25. e3 {[%clk 0:01:44]}  Ng5+ {[%clk 0:01:02]} 26. Ke2 {[%clk 0:01:44]}  a6 {[%clk 0:00:50]} 27. a4 {[%clk 0:01:34]}  d5 {[%clk 0:00:30]} 28. cxd5 {[%clk 0:01:28]}  Rxc1 {[%clk 0:00:31]} 29. Bxc1 {[%clk 0:01:28]}  Bxb4 {[%clk 0:00:31]} 30. Nxh6+ {[%clk 0:01:28]}  Kf8 {[%clk 0:00:30]} 31. Nf5 {[%clk 0:01:29]}  Ne4 {[%clk 0:00:24]} 32. Bb2 {[%clk 0:01:27]}  a5 {[%clk 0:00:20]} 33. f3 {[%clk 0:01:25]}  Nc5 {[%clk 0:00:18]} 34. Rh1 {[%clk 0:01:08]}  Ke8 {[%clk 0:00:18]} 35. Rh8+ {[%clk 0:01:09]}  Kd7 {[%clk 0:00:18]} 36. Rh7 {[%clk 0:01:09]}  Nxa4 {[%clk 0:00:18]} 37. Rxf7+ {[%clk 0:01:09]}  Kc8 {[%clk 0:00:19]} 38. Ba1 {[%clk 0:01:06]}  Rxd5 {[%clk 0:00:18]} 39. Rxf6 {[%clk 0:01:06]}  Rd2+ {[%clk 0:00:18]} 40. Kf1 {[%clk 0:01:06]}  Rd1+ {[%clk 0:00:19]} 41. Kg2 {[%clk 0:01:06]}  Rxa1 {[%clk 0:00:20]} 42. g5 {[%clk 0:01:07]}  Ra2+ {[%clk 0:00:19]} 43. Kh3 {[%clk 0:01:07]}  Ra1 {[%clk 0:00:19]} 44. g6 {[%clk 0:01:07]}  Rg1 {[%clk 0:00:19]} 45. Ng3 {[%clk 0:01:06]}  Be1 {[%clk 0:00:15]} 46. Ne2 {[%clk 0:01:02]}  Rg5 {[%clk 0:00:14]} 47. f4 {[%clk 0:01:02]}  exf4 {[%clk 0:00:14]} 48. exf4 {[%clk 0:01:03]}  Rh5+ {[%clk 0:00:11]} 49. Kg4 {[%clk 0:01:03]}  Rh2 {[%clk 0:00:12]} 50. Kf3 {[%clk 0:00:59]}  Rh3+ {[%clk 0:00:09]} 51. Kg2 {[%clk 0:00:59]}  Rh4 {[%clk 0:00:09]} 52. Kf1 {[%clk 0:00:58]}  Bc3 {[%clk 0:00:04]} 53. Nxc3 {[%clk 0:00:55]}  Nxc3 {[%clk 0:00:04]} 54. g7 {[%clk 0:00:56]}  Rg4 {[%clk 0:00:04]} 55. Rf8+ {[%clk 0:00:56]}  Kd7 {[%clk 0:00:05]} 56. g8=Q {[%clk 0:00:57]}  Rxg8 {[%clk 0:00:05]} 57. Rxg8 {[%clk 0:00:58]}  Nd5 {[%clk 0:00:05]} 58. Rg4 {[%clk 0:00:50]}  Ne3+ {[%clk 0:00:05]} 0-1


[Site "https://www.chess.com"]

[Event "Titled Tuesday Blitz September 13 Early 2022"]
[White "Csonka, Balazs"]
[Black "Al-Tarboush, Ward"]
[WhiteFideId "742910"]
[BlackFideId "7601450"]
[WhiteElo "2404"]
[BlackElo "2234"]
[Result "1-0"]
[Round "08"]
[TimeControl "180+1"]
[Date "2022.09.13"]
[WhiteClock "0:00:08"]
[BlackClock "0:00:06"]

1. d4 {[%clk 0:03:00]}  b6 {[%clk 0:02:50]} 2. e4 {[%clk 0:02:55]}  Bb7 {[%clk 0:02:49]} 3. Bd3 {[%clk 0:02:55]}  e6 {[%clk 0:02:49]} 4. Nf3 {[%clk 0:02:55]}  c5 {[%clk 0:02:48]} 5. c3 {[%clk 0:02:54]}  Nf6 {[%clk 0:02:47]} 6. Qe2 {[%clk 0:02:49]}  Be7 {[%clk 0:02:45]} 7. O-O {[%clk 0:02:46]}  Nc6 {[%clk 0:02:18]} 8. a3 {[%clk 0:02:28]}  Na5 {[%clk 0:02:17]} 9. Nbd2 {[%clk 0:02:24]}  c4 {[%clk 0:02:17]} 10. Bc2 {[%clk 0:02:21]}  Qc7 {[%clk 0:02:16]} 11. Re1 {[%clk 0:01:51]}  h6 {[%clk 0:01:59]} 12. Rb1 {[%clk 0:01:39]}  d6 {[%clk 0:01:57]} 13. e5 {[%clk 0:01:21]}  Nd5 {[%clk 0:01:55]} 14. exd6 {[%clk 0:01:06]}  Bxd6 {[%clk 0:01:56]} 15. Ne4 {[%clk 0:01:06]}  Be7 {[%clk 0:01:56]} 16. Ne5 {[%clk 0:01:00]}  Bf6 {[%clk 0:01:40]} 17. Ba4+ {[%clk 0:00:46]}  Kd8 {[%clk 0:01:34]} 18. Nd6 {[%clk 0:00:26]}  Rf8 {[%clk 0:01:23]} 19. Nexf7+ {[%clk 0:00:25]}  Rxf7 {[%clk 0:01:22]} 20. Qxe6 {[%clk 0:00:25]}  Qe7 {[%clk 0:00:55]} 21. Nxf7+ {[%clk 0:00:20]}  Kc7 {[%clk 0:00:54]} 22. Bf4+ {[%clk 0:00:15]}  Nxf4 {[%clk 0:00:48]} 23. Qxe7+ {[%clk 0:00:15]}  Bxe7 {[%clk 0:00:48]} 24. Rxe7+ {[%clk 0:00:16]}  Kb8 {[%clk 0:00:48]} 25. Nd6 {[%clk 0:00:16]}  Bxg2 {[%clk 0:00:37]} 26. Rxg7 {[%clk 0:00:15]}  Bd5 {[%clk 0:00:33]} 27. Re1 {[%clk 0:00:14]}  Ne6 {[%clk 0:00:26]} 28. Re7 {[%clk 0:00:10]}  Nc7 {[%clk 0:00:26]} 29. f4 {[%clk 0:00:09]}  a6 {[%clk 0:00:25]} 30. f5 {[%clk 0:00:09]}  b5 {[%clk 0:00:25]} 31. Bc2 {[%clk 0:00:09]}  Nc6 {[%clk 0:00:26]} 32. f6 {[%clk 0:00:07]}  Nxe7 {[%clk 0:00:25]} 33. fxe7 {[%clk 0:00:08]}  Ra7 {[%clk 0:00:12]} 34. e8=Q+ {[%clk 0:00:07]}  Nxe8 {[%clk 0:00:12]} 35. Rxe8+ {[%clk 0:00:08]}  Kc7 {[%clk 0:00:13]} 36. Re7+ {[%clk 0:00:09]}  Kb8 {[%clk 0:00:14]} 37. Re8+ {[%clk 0:00:08]}  Kc7 {[%clk 0:00:13]} 38. Re7+ {[%clk 0:00:08]}  Kb8 {[%clk 0:00:14]} 39. Rxa7 {[%clk 0:00:08]}  Kxa7 {[%clk 0:00:15]} 40. Nf5 {[%clk 0:00:09]}  h5 {[%clk 0:00:14]} 41. Kf2 {[%clk 0:00:09]}  Kb6 {[%clk 0:00:13]} 42. h4 {[%clk 0:00:09]}  a5 {[%clk 0:00:13]} 43. Ke3 {[%clk 0:00:09]}  b4 {[%clk 0:00:12]} 44. Kf4 {[%clk 0:00:09]}  Kb5 {[%clk 0:00:11]} 45. Ne3 {[%clk 0:00:07]}  Bf7 {[%clk 0:00:10]} 46. Ke5 {[%clk 0:00:07]}  Be8 {[%clk 0:00:07]} 47. axb4 {[%clk 0:00:07]}  axb4 {[%clk 0:00:06]} 48. d5 {[%clk 0:00:07]}  Kc5 {[%clk 0:00:04]} 49. Be4 {[%clk 0:00:08]}  Kb5 {[%clk 0:00:03]} 50. d6 {[%clk 0:00:08]}  Ka4 {[%clk 0:00:03]} 51. Nxc4 {[%clk 0:00:07]}  bxc3 {[%clk 0:00:03]} 52. bxc3 {[%clk 0:00:07]}  Kb3 {[%clk 0:00:04]} 53. Nb6 {[%clk 0:00:08]}  Kxc3 {[%clk 0:00:04]} 54. d7 {[%clk 0:00:08]}  Bxd7 {[%clk 0:00:05]} 55. Nxd7 {[%clk 0:00:08]}  Kd2 {[%clk 0:00:06]} 56. Nf6 {[%clk 0:00:08]} 1-0


[Site "https://www.chess.com"]

[Event "Titled Tuesday Blitz September 13 Early 2022"]
[White "Donchenko, Alexander"]
[Black "Korchmar, Vasiliy"]
[WhiteFideId "24603295"]
[BlackFideId "24131750"]
[WhiteElo "2572"]
[BlackElo "2370"]
[Result "1-0"]
[Round "08"]
[TimeControl "180+1"]
[Date "2022.09.13"]
[WhiteClock "0:01:47"]
[BlackClock "0:00:01"]

1. Nf3 {[%clk 0:03:00]}  d5 {[%clk 0:02:58]} 2. g3 {[%clk 0:03:01]}  g6 {[%clk 0:02:56]} 3. Bg2 {[%clk 0:03:01]}  Bg7 {[%clk 0:02:57]} 4. d4 {[%clk 0:03:02]}  Nf6 {[%clk 0:02:57]} 5. O-O {[%clk 0:03:03]}  O-O {[%clk 0:02:57]} 6. c4 {[%clk 0:03:03]}  c6 {[%clk 0:02:58]} 7. b3 {[%clk 0:03:04]}  Bf5 {[%clk 0:02:54]} 8. Bb2 {[%clk 0:03:04]}  a5 {[%clk 0:02:52]} 9. Nc3 {[%clk 0:03:04]}  Ne4 {[%clk 0:02:49]} 10. e3 {[%clk 0:03:04]}  Nxc3 {[%clk 0:02:49]} 11. Bxc3 {[%clk 0:03:05]}  Nd7 {[%clk 0:02:43]} 12. Qe2 {[%clk 0:02:58]}  a4 {[%clk 0:02:42]} 13. cxd5 {[%clk 0:02:58]}  cxd5 {[%clk 0:02:39]} 14. Qb5 {[%clk 0:02:57]}  axb3 {[%clk 0:02:15]} 15. axb3 {[%clk 0:02:56]}  Qb6 {[%clk 0:02:15]} 16. Qxb6 {[%clk 0:02:47]}  Nxb6 {[%clk 0:02:16]} 17. Bb4 {[%clk 0:02:48]}  Bf6 {[%clk 0:02:10]} 18. Ne5 {[%clk 0:02:47]}  Bc2 {[%clk 0:02:05]} 19. Bc5 {[%clk 0:02:43]}  Bxe5 {[%clk 0:01:57]} 20. Bxb6 {[%clk 0:02:42]}  Bf6 {[%clk 0:01:42]} 21. Bxd5 {[%clk 0:02:41]}  e6 {[%clk 0:01:31]} 22. Bc4 {[%clk 0:02:38]}  Be4 {[%clk 0:01:22]} 23. Rfc1 {[%clk 0:02:32]}  h5 {[%clk 0:01:08]} 24. h4 {[%clk 0:02:29]}  g5 {[%clk 0:01:02]} 25. hxg5 {[%clk 0:02:28]}  Bxg5 {[%clk 0:01:03]} 26. Kf1 {[%clk 0:02:27]}  Kg7 {[%clk 0:00:50]} 27. Ke2 {[%clk 0:02:27]}  Be7 {[%clk 0:00:40]} 28. f3 {[%clk 0:02:26]}  Bc6 {[%clk 0:00:33]} 29. e4 {[%clk 0:02:24]}  Bf6 {[%clk 0:00:21]} 30. Rh1 {[%clk 0:02:23]}  Rxa1 {[%clk 0:00:07]} 31. Rxa1 {[%clk 0:02:24]}  Rh8 {[%clk 0:00:07]} 32. b4 {[%clk 0:02:16]}  h4 {[%clk 0:00:06]} 33. gxh4 {[%clk 0:02:16]}  Rxh4 {[%clk 0:00:05]} 34. Rg1+ {[%clk 0:02:16]}  Kh7 {[%clk 0:00:05]} 35. b5 {[%clk 0:02:04]}  Bd7 {[%clk 0:00:05]} 36. Ke3 {[%clk 0:02:02]}  Rh5 {[%clk 0:00:05]} 37. d5 {[%clk 0:02:00]}  exd5 {[%clk 0:00:03]} 38. Bxd5 {[%clk 0:02:01]}  Bxb5 {[%clk 0:00:03]} 39. Bxf7 {[%clk 0:02:00]}  Rh6 {[%clk 0:00:02]} 40. Bc7 {[%clk 0:01:54]}  Be7 {[%clk 0:00:01]} 41. Bg8+ {[%clk 0:01:47]} 1-0


[Site "https://www.chess.com"]